[Event "Early-Titled-Tuesday-Blitz-February-20-2024"]
[Site "Chess.com"]
[Date "2024.02.20"]
[Round "1"]
[White "renehp"]
[Black "Korchmar_Vasiliy"]
[Result "0-1"]
[WhiteElo "2420"]
[BlackElo "2769"]
[TimeControl "180+1"]
[EndTime "8:06:43 PST"]
[Termination "Korchmar_Vasiliy won on time"]

1. e4 {[%clk 0:02:53.9]} 1... c5 {[%clk 0:02:59.7]} 2. Nf3 {[%clk 0:02:54.3]}
2... d6 {[%clk 0:03:00.4]} 3. d4 {[%clk 0:02:54.3]} 3... cxd4 {[%clk 0:03:01.3]}
4. Nxd4 {[%clk 0:02:55.2]} 4... Nf6 {[%clk 0:03:01.9]} 5. Nc3 {[%clk 0:02:55.8]}
5... Nc6 {[%clk 0:03:02.4]} 6. Bc4 {[%clk 0:02:54.5]} 6... Qb6 {[%clk
0:03:00.8]} 7. Nxc6 {[%clk 0:02:54.4]} 7... bxc6 {[%clk 0:03:00.2]} 8. Bb3
{[%clk 0:02:54.4]} 8... g6 {[%clk 0:02:59.1]} 9. O-O {[%clk 0:02:53.4]} 9... Bg7
{[%clk 0:02:59.1]} 10. e5 {[%clk 0:02:53.8]} 10... dxe5 {[%clk 0:02:55.7]} 11.
Qe2 {[%clk 0:02:54]} 11... Ba6 {[%clk 0:02:49.8]} 12. Bc4 {[%clk 0:02:33.2]}
12... Bxc4 {[%clk 0:02:49.9]} 13. Qxc4 {[%clk 0:02:34.1]} 13... O-O {[%clk
0:02:50.8]} 14. Be3 {[%clk 0:02:34.2]} 14... Qxb2 {[%clk 0:02:43.6]} 15. Rfc1
{[%clk 0:02:30.2]} 15... Qb7 {[%clk 0:02:37.2]} 16. Rab1 {[%clk 0:02:23.6]}
16... Qc8 {[%clk 0:02:34.6]} 17. Bc5 {[%clk 0:02:20.1]} 17... Re8 {[%clk
0:02:32.9]} 18. Rd1 {[%clk 0:02:19.2]} 18... Qf5 {[%clk 0:02:30.6]} 19. Rd2
{[%clk 0:02:12.8]} 19... h5 {[%clk 0:02:29.9]} 20. Rbd1 {[%clk 0:02:07.4]} 20...
Bh6 {[%clk 0:02:20.1]} 21. Re2 {[%clk 0:02:00.8]} 21... Bg7 {[%clk 0:01:56.6]}
22. h3 {[%clk 0:01:59.5]} 22... e6 {[%clk 0:01:53.5]} 23. a4 {[%clk 0:01:43.3]}
23... a5 {[%clk 0:01:52.9]} 24. Bd6 {[%clk 0:01:36.9]} 24... Nd5 {[%clk
0:01:48.2]} 25. Ne4 {[%clk 0:01:36.8]} 25... Red8 {[%clk 0:01:39.5]} 26. Bc5
{[%clk 0:01:08.8]} 26... Nf4 {[%clk 0:01:36.5]} 27. Red2 {[%clk 0:01:05.6]}
27... Rd5 {[%clk 0:01:30.3]} 28. Be3 {[%clk 0:00:47.4]} 28... Rad8 {[%clk
0:01:24.5]} 29. Ng3 {[%clk 0:00:40.9]} 29... Qg5 {[%clk 0:01:10]} 30. h4 {[%clk
0:00:32.8]} 30... Qxh4 {[%clk 0:01:06.4]} 31. Qxc6 {[%clk 0:00:32.6]} 31... Qg4
{[%clk 0:00:55.3]} 32. Rxd5 {[%clk 0:00:26.6]} 32... exd5 {[%clk 0:00:56.2]} 33.
Rb1 {[%clk 0:00:04.5]} 33... h4 {[%clk 0:00:56.7]} 0-1

[Event "Early-Titled-Tuesday-Blitz-February-20-2024"]
[Site "Chess.com"]
[Date "2024.02.20"]
[Round "1"]
[White "ChristopherYoo"]
[Black "ahmedkandiliii"]
[Result "0-1"]
[WhiteElo "2968"]
[BlackElo "2537"]
[TimeControl "180+1"]
[EndTime "8:06:49 PST"]
[Termination "ahmedkandiliii won by resignation"]

1. Nf3 {[%clk 0:03:00.9]} 1... Nf6 {[%clk 0:02:57.4]} 2. c4 {[%clk 0:03:00.2]}
2... g6 {[%clk 0:02:56.5]} 3. Nc3 {[%clk 0:02:56.6]} 3... d5 {[%clk 0:02:56.2]}
4. cxd5 {[%clk 0:02:56.1]} 4... Nxd5 {[%clk 0:02:57.1]} 5. h4 {[%clk 0:02:55.5]}
5... Nxc3 {[%clk 0:02:55.2]} 6. bxc3 {[%clk 0:02:55]} 6... Bg7 {[%clk
0:02:54.4]} 7. h5 {[%clk 0:02:55.4]} 7... O-O {[%clk 0:02:55]} 8. Qa4 {[%clk
0:02:54.7]} 8... e5 {[%clk 0:02:38.7]} 9. hxg6 {[%clk 0:02:44.9]} 9... hxg6
{[%clk 0:02:39.6]} 10. Ba3 {[%clk 0:02:17.9]} 10... Re8 {[%clk 0:02:38]} 11. Ng5
{[%clk 0:02:09.2]} 11... e4 {[%clk 0:01:59.5]} 12. Nxe4 {[%clk 0:02:07.6]} 12...
b5 {[%clk 0:01:56.7]} 13. Qc2 {[%clk 0:01:51.3]} 13... Bf5 {[%clk 0:01:48.2]}
14. d3 {[%clk 0:01:51.5]} 14... Bxe4 {[%clk 0:01:44.2]} 15. dxe4 {[%clk
0:01:52.4]} 15... a5 {[%clk 0:01:38.2]} 16. e3 {[%clk 0:01:49.7]} 16... b4
{[%clk 0:01:33.4]} 17. Bb2 {[%clk 0:01:49.3]} 17... Nc6 {[%clk 0:01:31.7]} 18.
Bb5 {[%clk 0:01:41.2]} 18... Re6 {[%clk 0:01:31.1]} 19. Bc4 {[%clk 0:01:21]}
19... Rd6 {[%clk 0:01:12.4]} 20. Bd5 {[%clk 0:01:21]} 20... Rb8 {[%clk
0:01:08.9]} 21. c4 {[%clk 0:01:20.9]} 21... b3 {[%clk 0:01:06.6]} 22. Qe2 {[%clk
0:01:13]} 22... bxa2 {[%clk 0:00:49.5]} 23. Rxa2 {[%clk 0:01:10.8]} 23... Nb4
{[%clk 0:00:43.9]} 24. Bxg7 {[%clk 0:01:09.2]} 24... Kxg7 {[%clk 0:00:40.4]} 25.
Ra1 {[%clk 0:00:57]} 25... c6 {[%clk 0:00:36.3]} 26. e5 {[%clk 0:00:55.8]} 26...
Rxd5 {[%clk 0:00:28.2]} 27. cxd5 {[%clk 0:00:55.6]} 27... Qxd5 {[%clk
0:00:29.1]} 28. O-O {[%clk 0:00:55.4]} 28... Qxe5 {[%clk 0:00:27.8]} 29. Rfb1
{[%clk 0:00:50.2]} 29... Rh8 {[%clk 0:00:24.9]} 30. Qb2 {[%clk 0:00:50.6]} 30...
Qxb2 {[%clk 0:00:21.9]} 31. Rxb2 {[%clk 0:00:51.5]} 31... Nd3 {[%clk 0:00:12.4]}
32. Rd2 {[%clk 0:00:50.6]} 32... Ne5 {[%clk 0:00:11.5]} 33. Rc2 {[%clk
0:00:49.7]} 33... Ra8 {[%clk 0:00:10.5]} 34. Rc5 {[%clk 0:00:49.9]} 34... Nd7
{[%clk 0:00:10.5]} 35. Rcxa5 {[%clk 0:00:47.7]} 35... Rb8 {[%clk 0:00:10.7]} 36.
Ra7 {[%clk 0:00:47.6]} 36... Nf6 {[%clk 0:00:10]} 37. Rc1 {[%clk 0:00:47.4]}
37... Rb6 {[%clk 0:00:09.9]} 38. Rc7 {[%clk 0:00:46.9]} 38... Rb2 {[%clk
0:00:09.3]} 39. R7xc6 {[%clk 0:00:47.2]} 39... Ne4 {[%clk 0:00:09.8]} 40. R6c2
{[%clk 0:00:47.3]} 0-1

[Event "Early-Titled-Tuesday-Blitz-February-20-2024"]
[Site "Chess.com"]
[Date "2024.02.20"]
[Round "1"]
[White "wonderfultime"]
[Black "zverr1"]
[Result "1-0"]
[WhiteElo "3066"]
[BlackElo "2533"]
[TimeControl "180+1"]
[EndTime "8:06:51 PST"]
[Termination "wonderfultime won by checkmate"]

1. d4 {[%clk 0:02:44.6]} 1... Nf6 {[%clk 0:02:58.3]} 2. Nf3 {[%clk 0:02:35.6]}
2... g6 {[%clk 0:02:57.7]} 3. c4 {[%clk 0:02:34.6]} 3... Bg7 {[%clk 0:02:56.3]}
4. g3 {[%clk 0:02:35.3]} 4... c6 {[%clk 0:02:54.7]} 5. Bg2 {[%clk 0:02:35.4]}
5... d5 {[%clk 0:02:54.7]} 6. b3 {[%clk 0:02:35.8]} 6... O-O {[%clk 0:02:54.6]}
7. O-O {[%clk 0:02:36]} 7... a5 {[%clk 0:02:54.2]} 8. Nc3 {[%clk 0:02:33.2]}
8... Bf5 {[%clk 0:02:53.1]} 9. Bb2 {[%clk 0:02:33.6]} 9... Ne4 {[%clk
0:02:52.5]} 10. e3 {[%clk 0:02:33.6]} 10... Nxc3 {[%clk 0:02:51.5]} 11. Bxc3
{[%clk 0:02:34.5]} 11... Be4 {[%clk 0:02:51.7]} 12. Qe2 {[%clk 0:02:32.7]} 12...
a4 {[%clk 0:02:51.3]} 13. Rfc1 {[%clk 0:02:24.1]} 13... Nd7 {[%clk 0:02:42.9]}
14. Bf1 {[%clk 0:02:12]} 14... axb3 {[%clk 0:02:25.6]} 15. axb3 {[%clk
0:02:10.7]} 15... Rxa1 {[%clk 0:02:26.5]} 16. Rxa1 {[%clk 0:02:11.4]} 16... c5
{[%clk 0:02:21.3]} 17. Nd2 {[%clk 0:02:08.6]} 17... cxd4 {[%clk 0:02:21]} 18.
exd4 {[%clk 0:02:07.5]} 18... Qb6 {[%clk 0:01:54.8]} 19. c5 {[%clk 0:02:01.9]}
19... Qe6 {[%clk 0:01:38.2]} 20. b4 {[%clk 0:02:01.4]} 20... b6 {[%clk
0:01:21.5]} 21. f3 {[%clk 0:01:30.5]} 21... bxc5 {[%clk 0:01:21.3]} 22. Ra6
{[%clk 0:01:29.6]} 22... Qf5 {[%clk 0:00:37.8]} 23. fxe4 {[%clk 0:01:28.4]}
23... dxe4 {[%clk 0:00:38.7]} 24. bxc5 {[%clk 0:01:15.7]} 24... Nxc5 {[%clk
0:00:36.5]} 25. Ra5 {[%clk 0:01:14.9]} 25... Rc8 {[%clk 0:00:31.4]} 26. Qe3
{[%clk 0:00:56.5]} 26... Qf6 {[%clk 0:00:26.4]} 27. Rxc5 {[%clk 0:00:49.5]}
27... Rxc5 {[%clk 0:00:26.3]} 28. dxc5 {[%clk 0:00:50.4]} 28... Qxc3 {[%clk
0:00:27]} 29. Qxc3 {[%clk 0:00:51.3]} 29... Bxc3 {[%clk 0:00:27.6]} 30. Nxe4
{[%clk 0:00:52.2]} 30... Bd4+ {[%clk 0:00:23.9]} 31. Kg2 {[%clk 0:00:52.8]}
31... e5 {[%clk 0:00:19.9]} 32. c6 {[%clk 0:00:52.1]} 32... Bb6 {[%clk
0:00:19.7]} 33. Nf6+ {[%clk 0:00:51.7]} 33... Kg7 {[%clk 0:00:18.6]} 34. Nd5
{[%clk 0:00:52.3]} 34... Ba5 {[%clk 0:00:18]} 35. c7 {[%clk 0:00:52.2]} 35...
Bxc7 {[%clk 0:00:17.8]} 36. Nxc7 {[%clk 0:00:53.1]} 36... f5 {[%clk 0:00:18.5]}
37. Kf3 {[%clk 0:00:52.2]} 37... Kf6 {[%clk 0:00:18.7]} 38. Bd3 {[%clk
0:00:52.3]} 38... h6 {[%clk 0:00:16.2]} 39. Nd5+ {[%clk 0:00:52.1]} 39... Ke6
{[%clk 0:00:16.3]} 40. Ne3 {[%clk 0:00:52]} 40... Kf6 {[%clk 0:00:15.8]} 41. Bc2
{[%clk 0:00:51.1]} 41... Ke6 {[%clk 0:00:16.1]} 42. Bb3+ {[%clk 0:00:51.7]}
42... Kf6 {[%clk 0:00:16.7]} 43. Nd5+ {[%clk 0:00:52.3]} 43... Kg5 {[%clk
0:00:17.3]} 44. h4+ {[%clk 0:00:51.9]} 44... Kh5 {[%clk 0:00:17.9]} 45. Nf6#
{[%clk 0:00:52.6]} 1-0

[Event "Early-Titled-Tuesday-Blitz-February-20-2024"]
[Site "Chess.com"]
[Date "2024.02.20"]
[Round "1"]
[White "arnash_bauyrzhan"]
[Black "Boundless_Strike"]
[Result "0-1"]
[WhiteElo "2255"]
[BlackElo "2613"]
[TimeControl "180+1"]
[EndTime "8:06:54 PST"]
[Termination "Boundless_Strike won on time"]

1. e4 {[%clk 0:03:00.9]} 1... d5 {[%clk 0:02:54.3]} 2. exd5 {[%clk 0:03:00.4]}
2... Qxd5 {[%clk 0:02:55.2]} 3. Nc3 {[%clk 0:02:59.8]} 3... Qa5 {[%clk
0:02:55.4]} 4. d4 {[%clk 0:02:59.7]} 4... e5 {[%clk 0:02:55.5]} 5. dxe5 {[%clk
0:02:57.1]} 5... Bb4 {[%clk 0:02:55.2]} 6. Bd2 {[%clk 0:02:52.8]} 6... Nc6
{[%clk 0:02:54.2]} 7. Bb5 {[%clk 0:02:46.6]} 7... Bd7 {[%clk 0:02:53.3]} 8. Bxc6
{[%clk 0:02:30.9]} 8... Bxc6 {[%clk 0:02:53.3]} 9. Nf3 {[%clk 0:02:28.9]} 9...
O-O-O {[%clk 0:02:52.9]} 10. Qe2 {[%clk 0:02:13.8]} 10... Ne7 {[%clk 0:02:46.5]}
11. a3 {[%clk 0:02:06.5]} 11... Ng6 {[%clk 0:02:39.3]} 12. O-O {[%clk
0:02:04.1]} 12... Bxc3 {[%clk 0:02:37.7]} 13. Bxc3 {[%clk 0:02:03.9]} 13... Qc5
{[%clk 0:02:37.7]} 14. Rad1 {[%clk 0:01:36.7]} 14... Nf4 {[%clk 0:02:21]} 15.
Qe3 {[%clk 0:01:10.1]} 15... Qxe3 {[%clk 0:02:20.6]} 16. fxe3 {[%clk 0:01:10.2]}
16... Ne2+ {[%clk 0:02:18.6]} 17. Kf2 {[%clk 0:01:09.5]} 17... Nxc3 {[%clk
0:02:16.8]} 18. bxc3 {[%clk 0:01:09.8]} 18... h6 {[%clk 0:02:12.5]} 19. c4
{[%clk 0:01:02.4]} 19... Be4 {[%clk 0:02:09.3]} 20. c3 {[%clk 0:00:51.1]} 20...
Rhe8 {[%clk 0:02:05]} 21. Rd4 {[%clk 0:00:48.5]} 21... Bxf3 {[%clk 0:02:03.1]}
22. gxf3 {[%clk 0:00:47.6]} 22... Rxe5 {[%clk 0:02:03.6]} 23. Rxd8+ {[%clk
0:00:41.6]} 23... Kxd8 {[%clk 0:02:03.6]} 24. Rd1+ {[%clk 0:00:42.2]} 24... Ke7
{[%clk 0:02:04]} 25. Rd4 {[%clk 0:00:41.6]} 25... Ra5 {[%clk 0:02:01.9]} 26.
Re4+ {[%clk 0:00:28.8]} 26... Kd7 {[%clk 0:01:24.3]} 27. Rf4 {[%clk 0:00:20.6]}
27... f6 {[%clk 0:01:23]} 28. Rd4+ {[%clk 0:00:20.5]} 28... Kc6 {[%clk
0:01:16.8]} 29. Ke2 {[%clk 0:00:10.7]} 29... Rxa3 {[%clk 0:01:16.2]} 30. Kd3
{[%clk 0:00:10.5]} 30... Ra2 {[%clk 0:01:13.1]} 31. h4 {[%clk 0:00:10.6]} 31...
a5 {[%clk 0:01:12.4]} 32. e4 {[%clk 0:00:01.2]} 32... a4 {[%clk 0:01:11.5]} 33.
f4 {[%clk 0:00:01.6]} 33... Ra1 {[%clk 0:00:51.7]} 34. e5 {[%clk 0:00:01.9]}
34... fxe5 {[%clk 0:00:52.6]} 35. fxe5 {[%clk 0:00:01.6]} 35... Re1 {[%clk
0:00:53.3]} 0-1

[Event "Early-Titled-Tuesday-Blitz-February-20-2024"]
[Site "Chess.com"]
[Date "2024.02.20"]
[Round "1"]
[White "Mr_November18"]
[Black "OneTrickPony_82"]
[Result "0-1"]
[WhiteElo "2103"]
[BlackElo "2557"]
[TimeControl "180+1"]
[EndTime "8:06:54 PST"]
[Termination "OneTrickPony_82 won by resignation"]

1. e4 {[%clk 0:03:00.9]} 1... e5 {[%clk 0:03:00.1]} 2. Nf3 {[%clk 0:03:00.2]}
2... Nc6 {[%clk 0:03:00.7]} 3. d4 {[%clk 0:03:00.4]} 3... exd4 {[%clk
0:03:00.5]} 4. Bc4 {[%clk 0:03:00.5]} 4... Nf6 {[%clk 0:03:00]} 5. e5 {[%clk
0:03:00.8]} 5... d5 {[%clk 0:03:00]} 6. Bb5 {[%clk 0:03:00.8]} 6... Nd7 {[%clk
0:03:00.6]} 7. Bxc6 {[%clk 0:03:00.2]} 7... bxc6 {[%clk 0:03:00.9]} 8. O-O
{[%clk 0:02:57.6]} 8... Be7 {[%clk 0:03:00.9]} 9. e6 {[%clk 0:02:56.9]} 9...
fxe6 {[%clk 0:02:57.5]} 10. Re1 {[%clk 0:02:56.1]} 10... e5 {[%clk 0:02:30.9]}
11. Nxe5 {[%clk 0:02:55.7]} 11... Nxe5 {[%clk 0:02:31.2]} 12. Rxe5 {[%clk
0:02:55.3]} 12... O-O {[%clk 0:02:31.4]} 13. Qh5 {[%clk 0:02:45.6]} 13... Bd6
{[%clk 0:02:24]} 14. Re1 {[%clk 0:02:41.3]} 14... Qf6 {[%clk 0:02:22.2]} 15. f3
{[%clk 0:02:32.8]} 15... Bf5 {[%clk 0:02:12.8]} 16. c3 {[%clk 0:02:19.2]} 16...
Bg6 {[%clk 0:01:59.7]} 17. Qh3 {[%clk 0:02:14.4]} 17... Rae8 {[%clk 0:01:56.9]}
18. Rf1 {[%clk 0:02:02]} 18... Bc5 {[%clk 0:01:32.2]} 19. Kh1 {[%clk 0:01:58.2]}
19... Bd3 {[%clk 0:01:22.9]} 20. Rd1 {[%clk 0:01:37.1]} 20... Qe5 {[%clk
0:01:19.3]} 21. Bd2 {[%clk 0:01:29.5]} 21... Qe2 {[%clk 0:00:58.4]} 22. Na3
{[%clk 0:01:25.3]} 22... Bxa3 {[%clk 0:00:50.7]} 23. bxa3 {[%clk 0:01:23.1]}
23... Bc2 {[%clk 0:00:51]} 24. Rg1 {[%clk 0:01:02.5]} 24... Qxd2 {[%clk
0:00:49.4]} 25. cxd4 {[%clk 0:01:02.6]} 25... Qxd4 {[%clk 0:00:44.4]} 26. Qd7
{[%clk 0:01:02.3]} 26... Qe5 {[%clk 0:00:36.6]} 27. Qxc6 {[%clk 0:00:59]} 27...
Bg6 {[%clk 0:00:29.6]} 28. h3 {[%clk 0:00:55.5]} 28... Qd6 {[%clk 0:00:28.7]}
29. Qb7 {[%clk 0:00:51.5]} 29... d4 {[%clk 0:00:27.9]} 30. Qxa7 {[%clk
0:00:49.5]} 30... d3 {[%clk 0:00:27.8]} 31. Rad1 {[%clk 0:00:48.5]} 31... h6
{[%clk 0:00:27.1]} 32. Qa4 {[%clk 0:00:44.3]} 32... Kh7 {[%clk 0:00:26]} 33. Qc4
{[%clk 0:00:38.6]} 33... c5 {[%clk 0:00:22.7]} 34. a4 {[%clk 0:00:37.9]} 34...
Rd8 {[%clk 0:00:22]} 35. a5 {[%clk 0:00:37.2]} 35... Qd4 {[%clk 0:00:22.6]} 36.
Qb5 {[%clk 0:00:33.8]} 36... c4 {[%clk 0:00:22.5]} 37. a6 {[%clk 0:00:33.3]}
37... c3 {[%clk 0:00:22.2]} 0-1

[Event "Early-Titled-Tuesday-Blitz-February-20-2024"]
[Site "Chess.com"]
[Date "2024.02.20"]
[Round "1"]
[White "akanga001"]
[Black "tgpgoat"]
[Result "0-1"]
[WhiteElo "2014"]
[BlackElo "2551"]
[TimeControl "180+1"]
[EndTime "8:06:55 PST"]
[Termination "tgpgoat won by checkmate"]

1. d4 {[%clk 0:02:58.1]} 1... Nf6 {[%clk 0:02:59.5]} 2. c4 {[%clk 0:02:57.4]}
2... c5 {[%clk 0:02:58.4]} 3. d5 {[%clk 0:02:57]} 3... b5 {[%clk 0:02:57.7]} 4.
cxb5 {[%clk 0:02:52.1]} 4... a6 {[%clk 0:02:57.2]} 5. b6 {[%clk 0:02:52.7]} 5...
a5 {[%clk 0:02:57.3]} 6. Nc3 {[%clk 0:02:52.7]} 6... Ba6 {[%clk 0:02:56.8]} 7.
e4 {[%clk 0:02:51.4]} 7... Bxf1 {[%clk 0:02:56.4]} 8. Kxf1 {[%clk 0:02:51.4]}
8... d6 {[%clk 0:02:57.3]} 9. Nge2 {[%clk 0:02:50.9]} 9... Qxb6 {[%clk
0:02:56.5]} 10. Ng3 {[%clk 0:02:50.5]} 10... g6 {[%clk 0:02:55.8]} 11. Qe2
{[%clk 0:02:46.5]} 11... Nbd7 {[%clk 0:02:54]} 12. h4 {[%clk 0:02:46.4]} 12...
h5 {[%clk 0:02:50.4]} 13. Bg5 {[%clk 0:02:44.6]} 13... Bg7 {[%clk 0:02:49.8]}
14. Qd2 {[%clk 0:02:42.5]} 14... O-O {[%clk 0:02:49.1]} 15. Bh6 {[%clk
0:02:41.4]} 15... Rfb8 {[%clk 0:02:48.2]} 16. Bxg7 {[%clk 0:02:39.6]} 16... Kxg7
{[%clk 0:02:48.4]} 17. Rb1 {[%clk 0:02:37.2]} 17... Ne5 {[%clk 0:02:45.2]} 18.
Qg5 {[%clk 0:02:32.9]} 18... c4 {[%clk 0:02:07.5]} 19. Nf5+ {[%clk 0:02:24.7]}
19... Kf8 {[%clk 0:02:00.8]} 20. Qh6+ {[%clk 0:02:22.9]} 20... Ke8 {[%clk
0:02:01.3]} 21. Ne3 {[%clk 0:02:00.3]} 21... Neg4 {[%clk 0:01:58.3]} 22. Nxg4
{[%clk 0:01:53.5]} 22... Nxg4 {[%clk 0:01:57.8]} 23. Qf4 {[%clk 0:01:54]} 23...
Qd4 {[%clk 0:01:54.1]} 24. Rd1 {[%clk 0:01:50.5]} 24... Qc5 {[%clk 0:01:50.6]}
25. Rh3 {[%clk 0:01:45.4]} 25... Rxb2 {[%clk 0:01:47.9]} 26. Ne2 {[%clk
0:01:41]} 26... Rxa2 {[%clk 0:01:39.7]} 27. Rf3 {[%clk 0:01:38.7]} 27... f6
{[%clk 0:01:37.5]} 28. Nd4 {[%clk 0:01:35.5]} 28... Rb8 {[%clk 0:01:31.1]} 29.
Ne6 {[%clk 0:01:31.2]} 29... Qa7 {[%clk 0:01:24.1]} 30. Kg1 {[%clk 0:01:23.4]}
30... Rbb2 {[%clk 0:01:22.7]} 31. Rf1 {[%clk 0:01:19.3]} 31... Rb3 {[%clk
0:01:22.5]} 32. Rxb3 {[%clk 0:01:08.5]} 32... cxb3 {[%clk 0:01:23.4]} 33. Ng7+
{[%clk 0:00:49.2]} 33... Kf7 {[%clk 0:01:22.2]} 34. Ne6 {[%clk 0:00:45.8]} 34...
b2 {[%clk 0:01:15]} 35. Nd8+ {[%clk 0:00:25.3]} 35... Ke8 {[%clk 0:01:12]} 36.
Nc6 {[%clk 0:00:24.9]} 36... Qb7 {[%clk 0:01:05.9]} 37. f3 {[%clk 0:00:18.7]}
37... b1=Q {[%clk 0:01:02.1]} 38. fxg4 {[%clk 0:00:18.8]} 38... Q1b2 {[%clk
0:00:58.8]} 39. Qf3 {[%clk 0:00:17.3]} 39... Qe2 {[%clk 0:00:54.4]} 40. Qg3
{[%clk 0:00:14.6]} 40... Qb6+ {[%clk 0:00:53.2]} 41. Kh2 {[%clk 0:00:13.4]}
41... Qbe3 {[%clk 0:00:53.2]} 42. Qxe3 {[%clk 0:00:12.4]} 42... Qxg2# {[%clk
0:00:52.7]} 0-1

[Event "Early-Titled-Tuesday-Blitz-February-20-2024"]
[Site "Chess.com"]
[Date "2024.02.20"]
[Round "1"]
[White "santosalberto1987"]
[Black "regenda"]
[Result "1-0"]
[WhiteElo "2598"]
[BlackElo "2216"]
[TimeControl "180+1"]
[EndTime "8:07:00 PST"]
[Termination "santosalberto1987 won by resignation"]

1. e4 {[%clk 0:03:00.9]} 1... c5 {[%clk 0:02:59.7]} 2. Nf3 {[%clk 0:03:00.9]}
2... e6 {[%clk 0:03:00.1]} 3. g3 {[%clk 0:03:00.3]} 3... Nc6 {[%clk 0:02:59.4]}
4. Bg2 {[%clk 0:03:00.4]} 4... Nf6 {[%clk 0:02:57.7]} 5. Qe2 {[%clk 0:03:00.2]}
5... Qc7 {[%clk 0:02:57.2]} 6. O-O {[%clk 0:02:57.8]} 6... d6 {[%clk 0:02:57.3]}
7. c3 {[%clk 0:02:57.6]} 7... Be7 {[%clk 0:02:52.8]} 8. d4 {[%clk 0:02:57.5]}
8... O-O {[%clk 0:02:53.5]} 9. Bg5 {[%clk 0:02:52.9]} 9... Bd7 {[%clk
0:02:50.1]} 10. Nbd2 {[%clk 0:02:49.3]} 10... cxd4 {[%clk 0:02:49.6]} 11. cxd4
{[%clk 0:02:49.2]} 11... Rac8 {[%clk 0:02:50.1]} 12. Rac1 {[%clk 0:02:47.8]}
12... Qd8 {[%clk 0:02:44.3]} 13. e5 {[%clk 0:02:44.7]} 13... dxe5 {[%clk
0:02:38.1]} 14. dxe5 {[%clk 0:02:45.6]} 14... Nd5 {[%clk 0:02:37.8]} 15. Bxe7
{[%clk 0:02:45.9]} 15... Qxe7 {[%clk 0:02:38.4]} 16. Ne4 {[%clk 0:02:46.4]}
16... Rc7 {[%clk 0:02:32.5]} 17. a3 {[%clk 0:02:41.1]} 17... a6 {[%clk 0:02:32]}
18. b4 {[%clk 0:02:40.3]} 18... Bc8 {[%clk 0:02:18.2]} 19. h4 {[%clk 0:02:37.5]}
19... h6 {[%clk 0:02:17.2]} 20. Rfd1 {[%clk 0:02:29.5]} 20... Rd8 {[%clk
0:02:16.5]} 21. Rd2 {[%clk 0:02:26.6]} 21... Nb6 {[%clk 0:02:05.3]} 22. Rd6
{[%clk 0:02:21.3]} 22... Nxe5 {[%clk 0:01:55.5]} 23. Rxc7 {[%clk 0:01:55.4]}
23... Nxf3+ {[%clk 0:01:54.2]} 24. Qxf3 {[%clk 0:01:54.5]} 24... Qxc7 {[%clk
0:01:54.2]} 25. Rxd8+ {[%clk 0:01:50.9]} 25... Qxd8 {[%clk 0:01:55.1]} 26. Nc5
{[%clk 0:01:51.4]} 26... Nd5 {[%clk 0:01:40.9]} 27. Qd3 {[%clk 0:01:45.6]} 27...
b6 {[%clk 0:01:37.8]} 28. Nxa6 {[%clk 0:01:44.9]} 28... Bxa6 {[%clk 0:01:18.6]}
29. Qxa6 {[%clk 0:01:44.4]} 29... Nf6 {[%clk 0:01:03.3]} 30. Qa8 {[%clk
0:01:39.8]} 30... Qxa8 {[%clk 0:01:01.6]} 31. Bxa8 {[%clk 0:01:40.7]} 31... Kf8
{[%clk 0:01:02.3]} 32. Bf3 {[%clk 0:01:32.3]} 32... Ke7 {[%clk 0:01:02.1]} 33.
Kf1 {[%clk 0:01:31.4]} 33... Kd6 {[%clk 0:01:02.2]} 34. Ke2 {[%clk 0:01:31.7]}
34... Nd7 {[%clk 0:00:58.3]} 35. Bg2 {[%clk 0:01:25.4]} 35... g5 {[%clk
0:00:52.7]} 36. hxg5 {[%clk 0:01:25.1]} 36... hxg5 {[%clk 0:00:53.6]} 37. Kd3
{[%clk 0:01:25.3]} 37... f5 {[%clk 0:00:53]} 38. a4 {[%clk 0:01:23.9]} 38... e5
{[%clk 0:00:50.7]} 39. Kc4 {[%clk 0:01:21.2]} 39... e4 {[%clk 0:00:46.8]} 40.
Kb5 {[%clk 0:01:19.8]} 40... Kc7 {[%clk 0:00:42.7]} 41. g4 {[%clk 0:01:16.8]}
41... fxg4 {[%clk 0:00:35.2]} 42. Bxe4 {[%clk 0:01:16.9]} 42... Ne5 {[%clk
0:00:15.9]} 43. a5 {[%clk 0:01:15.3]} 43... bxa5 {[%clk 0:00:11.6]} 44. bxa5
{[%clk 0:01:16.2]} 44... Nf7 {[%clk 0:00:06.9]} 45. Bd5 {[%clk 0:01:09.6]} 45...
Nd6+ {[%clk 0:00:07]} 46. Kc5 {[%clk 0:01:10]} 46... Nf5 {[%clk 0:00:07.4]} 47.
a6 {[%clk 0:01:08.9]} 47... Kb8 {[%clk 0:00:07.7]} 48. Kb6 {[%clk 0:01:08.1]}
1-0

[Event "Early-Titled-Tuesday-Blitz-February-20-2024"]
[Site "Chess.com"]
[Date "2024.02.20"]
[Round "1"]
[White "Zq1"]
[Black "Vaathi_Coming"]
[Result "0-1"]
[WhiteElo "2507"]
[BlackElo "2919"]
[TimeControl "180+1"]
[EndTime "8:07:05 PST"]
[Termination "Vaathi_Coming won by checkmate"]

1. d4 {[%clk 0:03:00.9]} 1... Nf6 {[%clk 0:02:59.3]} 2. c4 {[%clk 0:03:00.7]}
2... Nc6 {[%clk 0:02:58.8]} 3. Nf3 {[%clk 0:02:59.2]} 3... e6 {[%clk 0:02:58.2]}
4. Nc3 {[%clk 0:02:58]} 4... Bb4 {[%clk 0:02:56.4]} 5. Qc2 {[%clk 0:02:57.1]}
5... d5 {[%clk 0:02:49.8]} 6. Bg5 {[%clk 0:02:45.6]} 6... h6 {[%clk 0:02:44.8]}
7. Bxf6 {[%clk 0:02:42.5]} 7... Qxf6 {[%clk 0:02:41.8]} 8. e3 {[%clk 0:02:39]}
8... O-O {[%clk 0:02:41.4]} 9. a3 {[%clk 0:02:34.7]} 9... Bxc3+ {[%clk
0:02:38.2]} 10. Qxc3 {[%clk 0:02:34.7]} 10... Re8 {[%clk 0:02:02.9]} 11. cxd5
{[%clk 0:02:26.8]} 11... exd5 {[%clk 0:02:03.8]} 12. Bb5 {[%clk 0:02:05.8]}
12... Bh3 {[%clk 0:01:35.4]} 13. O-O {[%clk 0:01:23.3]} 13... Qg6 {[%clk
0:01:20.2]} 14. Ne1 {[%clk 0:01:10.3]} 14... Bd7 {[%clk 0:00:51.9]} 15. Nd3
{[%clk 0:01:07.7]} 15... Nxd4 {[%clk 0:00:44]} 16. Qxd4 {[%clk 0:00:45.3]} 16...
Bxb5 {[%clk 0:00:43.1]} 17. Nf4 {[%clk 0:00:44.8]} 17... Qg5 {[%clk 0:00:35.8]}
18. Rfc1 {[%clk 0:00:31.9]} 18... c6 {[%clk 0:00:36.3]} 19. b3 {[%clk
0:00:31.7]} 19... Re4 {[%clk 0:00:31.5]} 20. Qc5 {[%clk 0:00:28.9]} 20... Qe7
{[%clk 0:00:29.9]} 21. a4 {[%clk 0:00:27.4]} 21... Ba6 {[%clk 0:00:28]} 22. b4
{[%clk 0:00:24.9]} 22... Qxc5 {[%clk 0:00:24]} 23. bxc5 {[%clk 0:00:24.6]} 23...
d4 {[%clk 0:00:22.9]} 24. Ra3 {[%clk 0:00:19.8]} 24... dxe3 {[%clk 0:00:21.9]}
25. fxe3 {[%clk 0:00:19]} 25... Rd8 {[%clk 0:00:21.5]} 26. Rc2 {[%clk
0:00:17.6]} 26... g5 {[%clk 0:00:14.6]} 27. Ne2 {[%clk 0:00:16.5]} 27... Rd1+
{[%clk 0:00:14.1]} 28. Kf2 {[%clk 0:00:16]} 28... Kg7 {[%clk 0:00:10.1]} 29. a5
{[%clk 0:00:14.4]} 29... Kg6 {[%clk 0:00:10]} 30. h3 {[%clk 0:00:14]} 30... f5
{[%clk 0:00:10]} 31. Nd4 {[%clk 0:00:13.6]} 31... f4 {[%clk 0:00:09.4]} 32. Nf3
{[%clk 0:00:12.2]} 32... Rf1# {[%clk 0:00:09.1]} 0-1